fUSD/lending_fUSD_20260517
["ID","MTS","AMOUNT","RATE_DAILY","PERIOD"]
[422481139,1778987451000,-151.0,0.000301,7]
[422481140,1778987451000,-215.895752,0.000301,7]
[422481130,1778987451000,-592.735492,0.000301,7]
[422481138,1778987451000,-151.0,0.000301,7]
[422481137,1778987451000,-159.791697,0.000301,7]
[422481135,1778987451000,-151.0,0.000301,7]
[422481132,1778987451000,-176.847513,0.000301,7]
[422481136,1778987451000,-151.0,0.000301,7]
[422481131,1778987451000,-176.847513,0.000301,7]
[422481133,1778987451000,-176.847513,0.000301,7]
[422481126,1778987451000,-592.735492,0.000301,7]
[422481124,1778987451000,-5883.9986393,0.00030086,2]
[422481127,1778987451000,-592.735492,0.000301,7]
[422481203,1778987452000,-215.895752,0.0003013,7]
[422481213,1778987452000,-151.0,0.0003013,7]
[422481208,1778987452000,-2163.748438,0.0003013,7]
[422481209,1778987452000,-2163.748438,0.0003013,7]
[422481205,1778987452000,-215.895752,0.0003013,7]
[422481202,1778987452000,-153.533458,0.0003013,7]
[422481207,1778987452000,-2163.748438,0.0003013,7]
[422481210,1778987452000,-2163.748446,0.0003013,7]
[422481206,1778987452000,-215.895748,0.0003013,7]
[422481204,1778987452000,-215.895752,0.0003013,7]
[422481223,1778987452000,-200.0,0.00030137,2]
[422481200,1778987452000,-151.0,0.0003013,7]
[422481224,1778987452000,-154.21,0.00030137,120]
[422481228,1778987452000,-152.0,0.0003017,30]
[422481222,1778987452000,-561.41,0.00030137,2]
[422481212,1778987452000,-151.0,0.0003013,7]
[422481216,1778987452000,-193.89311,0.0003013,7]
[422481219,1778987452000,-193.89311,0.0003013,7]
[422481214,1778987452000,-151.0,0.0003013,7]
[422481217,1778987452000,-151.0,0.0003013,7]
[422481215,1778987452000,-193.89311,0.0003013,7]
[422481220,1778987452000,-151.0,0.0003013,7]
[422481221,1778987452000,-200.0,0.00030133,2]
[422481218,1778987452000,-151.0,0.0003013,7]
[422481226,1778987452000,-5883.9986393,0.00030138,2]
[422481211,1778987452000,-151.0,0.0003013,7]
[422481225,1778987452000,-1222.4825337,0.00030137,30]
[422481201,1778987452000,-151.0,0.0003013,7]
[422481174,1778987452000,-299.822509,0.0003013,7]
[422481195,1778987452000,-176.847513,0.0003013,7]
[422481229,1778987452000,-154.0,0.0003017,30]
[422481175,1778987452000,-299.822509,0.0003013,7]
[422481173,1778987452000,-1404.238023,0.0003013,7]
[422481170,1778987452000,-1404.23803,0.0003013,7]
[422481171,1778987452000,-1404.23803,0.0003013,7]
[422481172,1778987452000,-1404.23803,0.0003013,7]
[422481176,1778987452000,-299.822509,0.0003013,7]
[422481178,1778987452000,-2126.743381,0.0003013,7]
[422481180,1778987452000,-2126.743381,0.0003013,7]
[422481179,1778987452000,-2126.743381,0.0003013,7]
[422481181,1778987452000,-2126.743387,0.0003013,7]
[422481183,1778987452000,-261.245373,0.0003013,7]
[422481185,1778987452000,-261.245373,0.0003013,7]
[422481182,1778987452000,-261.245373,0.0003013,7]
[422481186,1778987452000,-371.903411,0.0003013,7]
[422481184,1778987452000,-261.245373,0.0003013,7]
[422481177,1778987452000,-299.82251304,0.0003013,7]
[422481188,1778987452000,-371.903411,0.0003013,7]
[422481187,1778987452000,-371.903411,0.0003013,7]
[422481190,1778987452000,-592.735492,0.0003013,7]
[422481189,1778987452000,-371.903411,0.0003013,7]
[422481192,1778987452000,-592.735492,0.0003013,7]
[422481191,1778987452000,-592.735492,0.0003013,7]
[422481196,1778987452000,-176.847513,0.0003013,7]
[422481199,1778987452000,-151.0,0.0003013,7]
[422481198,1778987452000,-167.096515,0.0003013,7]
[422481193,1778987452000,-176.847513,0.0003013,7]
[422481197,1778987452000,-176.847521,0.0003013,7]
[422481227,1778987452000,-155.0,0.0003017,30]
[422481194,1778987452000,-592.735483,0.0003013,7]
[422481231,1778987452000,-152.0,0.0003017,30]
[422481271,1778987452000,-156.45510037,0.00030587,7]
[422481260,1778987452000,-203.0,0.00030464,30]
[422481265,1778987452000,-947.16,0.000305,7]
[422481262,1778987452000,-350.0,0.00030469,2]
[422481263,1778987452000,-3133.77490464,0.0003048,2]
[422481268,1778987452000,-159.02812847,0.00030576,7]
[422481270,1778987452000,-5883.9986393,0.00030579,2]
[422481264,1778987452000,-3133.77490464,0.00030497,2]
[422481261,1778987452000,-319.0,0.00030464,30]
[422481269,1778987452000,-662.0,0.00030578,5]
[422481273,1778987452000,-9004.33,0.000306,14]
[422481283,1778987452000,-200.0,0.00030739,2]
[422481272,1778987452000,-184.76473924,0.00030598,2]
[422481278,1778987452000,-303.17672725,0.00030616,7]
[422481280,1778987452000,-303.36207499,0.00030616,7]
[422481275,1778987452000,-200.0,0.00030603,2]
[422481274,1778987452000,-200.0,0.00030603,2]
[422481282,1778987452000,-5883.9986393,0.00030671,2]
[422481279,1778987452000,-300.5247393,0.00030616,2]
[422481281,1778987452000,-349.97423401,0.00030616,7]
[422481277,1778987452000,-354.02705387,0.00030608,7]
[422481276,1778987452000,-200.0,0.00030603,2]
[422481285,1778987452000,-536.0,0.00030875,6]
[422481284,1778987452000,-5883.9986393,0.00030862,2]
[422481286,1778987452000,-2146.82990368,0.00030908,2]
[422481287,1778987452000,-200.0,0.00030909,2]
[422481230,1778987452000,-154.0,0.0003017,30]
[422481289,1778987452000,-200.0,0.00030909,2]
[422481267,1778987452000,-159.24191236,0.00030576,7]
[422481288,1778987452000,-200.0,0.00030909,2]
[422481258,1778987452000,-350.0,0.00030445,2]
[422481266,1778987452000,-2146.82990368,0.00030575,2]
[422481235,1778987452000,-155.0,0.00030174,30]
[422481232,1778987452000,-158.0,0.0003017,30]
[422481236,1778987452000,-153.0,0.00030174,30]
[422481234,1778987452000,-151.0,0.00030174,30]
[422481238,1778987452000,-153.0,0.00030188,30]
[422481239,1778987452000,-2008.62,0.000302,2]
[422481248,1778987452000,-200.0,0.000303,2]
[422481240,1778987452000,-442.38,0.000302,7]
[422481241,1778987452000,-1075.05,0.000302,7]
[422481237,1778987452000,-157.0,0.00030175,30]
[422481242,1778987452000,-975.85,0.000302,7]
[422481243,1778987452000,-3133.77490464,0.00030235,2]
[422481233,1778987452000,-152.0,0.00030174,30]
[422481246,1778987452000,-350.0,0.00030263,2]
[422481259,1778987452000,-621.0,0.00030464,30]
[422481257,1778987452000,-1887.7863083,0.0003044,2]
[422481253,1778987452000,-5883.9986393,0.00030365,2]
[422481256,1778987452000,-200.0,0.00030434,2]
[422481245,1778987452000,-3133.77490464,0.00030251,2]
[422481255,1778987452000,-1887.7863083,0.00030422,2]
[422481252,1778987452000,-1887.7863083,0.00030351,2]
[422481251,1778987452000,-536.0,0.00030341,5]
[422481249,1778987452000,-200.0,0.000303,2]
[422481250,1778987452000,-200.0,0.000303,2]
[422481247,1778987452000,-1887.7863083,0.00030282,2]
[422481244,1778987452000,-713.7,0.00030239,2]
[422481254,1778987452000,-3133.77490464,0.00030391,2]
[422481332,1778987453000,-260.75245567,0.00031483,7]
[422481326,1778987453000,-350.0,0.00031394,2]
[422481324,1778987453000,-200.0,0.00031357,2]
[422481330,1778987453000,-165.21166844,0.00031483,7]
[422481322,1778987453000,-2146.82990368,0.00031269,2]
[422481327,1778987453000,-5883.9986393,0.00031403,2]
[422481325,1778987453000,-211.5628793,0.00031372,18]
[422481329,1778987453000,-161.71,0.00031424,120]
[422481323,1778987453000,-975.85,0.000313,7]
[422481321,1778987453000,-152.0,0.00031231,3]
[422481328,1778987453000,-536.0,0.00031409,6]
[422481331,1778987453000,-262.74937142,0.00031483,7]
[422481334,1778987453000,-200.97711459,0.00031483,7]
[422481338,1778987453000,-166.95712835,0.00031483,7]
[422481337,1778987453000,-174.00927571,0.00031483,7]
[422481333,1778987453000,-205.02172777,0.00031483,7]
[422481339,1778987453000,-318.48382473,0.00031483,7]
[422481335,1778987453000,-290.33345119,0.00031483,7]
[422481340,1778987453000,-318.05625693,0.00031483,7]
[422481336,1778987453000,-226.69370499,0.00031483,7]
[422481341,1778987453000,-241.91649627,0.00031483,7]
[422481343,1778987453000,-1406.87099074,0.00031484,2]
[422481344,1778987453000,-267.47841367,0.00031494,7]
[422481345,1778987453000,-263.2447048,0.00031494,7]
[422481320,1778987453000,-350.0,0.00031228,2]
[422481354,1778987453000,-455.04311249,0.00031524,7]
[422481342,1778987453000,-248.78957775,0.00031483,7]
[422481318,1778987453000,-200.0,0.00031218,2]
[422481300,1778987453000,-200.0,0.00031046,2]
[422481314,1778987453000,-154.33877353,0.00031188,30]
[422481346,1778987453000,-206.50364102,0.00031494,7]
[422481296,1778987453000,-442.38,0.00031,7]
[422481290,1778987453000,-415.07,0.00030952,120]
[422481294,1778987453000,-6055.0,0.00030997,2]
[422481291,1778987453000,-5883.9986393,0.00030961,2]
[422481293,1778987453000,-1223.0,0.00030997,2]
[422481292,1778987453000,-1270.0,0.00030997,2]
[422481297,1778987453000,-1075.05,0.00031,7]
[422481299,1778987453000,-5883.9986393,0.00031016,2]
[422481303,1778987453000,-155.0,0.0003117,30]
[422481301,1778987453000,-200.0,0.00031096,2]
[422481302,1778987453000,-2146.82990368,0.00031144,2]
[422481316,1778987453000,-167.385,0.000312,7]
[422481298,1778987453000,-150.0,0.00031011,2]
[422481305,1778987453000,-154.0,0.0003117,30]
[422481306,1778987453000,-154.0,0.0003117,30]
[422481308,1778987453000,-158.0,0.0003117,30]
[422481307,1778987453000,-152.0,0.0003117,30]
[422481310,1778987453000,-151.0,0.00031174,30]
[422481311,1778987453000,-155.0,0.00031174,30]
[422481312,1778987453000,-153.0,0.00031174,30]
[422481309,1778987453000,-152.0,0.00031174,30]
[422481317,1778987453000,-200.0,0.00031218,2]
[422481315,1778987453000,-167.385,0.000312,7]
[422481313,1778987453000,-157.0,0.00031175,30]
[422481319,1778987453000,-200.0,0.00031218,2]
[422481304,1778987453000,-152.0,0.0003117,30]
[422481353,1778987453000,-450.78710894,0.00031524,2]
[422481295,1778987453000,-417.0,0.00030997,2]
[422481347,1778987453000,-312.91020074,0.00031494,7]
[422481388,1778987453000,-205.71039829,0.00032088,7]
[422481387,1778987453000,-157.92679824,0.00032088,7]
[422481390,1778987453000,-250.23524728,0.00032088,7]
[422481391,1778987453000,-229.84949372,0.00032088,7]
[422481383,1778987453000,-181.41360905,0.00032088,7]
[422481381,1778987453000,-211.76792888,0.00032088,5]
[422481384,1778987453000,-171.0481343,0.00032088,7]
[422481389,1778987453000,-333.91425669,0.00032088,7]
[422481382,1778987453000,-163.2917966,0.00032088,7]
[422481385,1778987453000,-453.38740999,0.00032088,7]
[422481392,1778987453000,-477.72573709,0.00032088,7]
[422481395,1778987453000,-477.0843854,0.00032088,7]
[422481380,1778987453000,-580.66690239,0.00032088,7]
[422481397,1778987453000,-483.83299255,0.00032088,7]
[422481398,1778987453000,-215.41949644,0.00032088,7]
[422481399,1778987453000,-335.07009356,0.00032088,7]
[422481393,1778987453000,-339.61857189,0.00032088,7]
[422481402,1778987453000,-172.51706958,0.00032099,7]
[422481403,1778987453000,-334.81749219,0.00032099,2]
[422481396,1778987453000,-182.76685591,0.00032088,7]
[422481401,1778987453000,-352.26657949,0.00032097,7]
[422481400,1778987453000,-232.7103469,0.00032088,2]
[422481405,1778987453000,-534.95682734,0.00032099,7]
[422481404,1778987453000,-440.55108259,0.00032099,7]
[422481406,1778987453000,-526.4894096,0.00032099,7]
[422481348,1778987453000,-208.303148,0.00031494,7]
[422481394,1778987453000,-197.1166675,0.00032088,7]
[422481386,1778987453000,-158.90272887,0.00032088,7]
[422481407,1778987453000,-413.00728205,0.00032099,7]
[422481369,1778987453000,-2146.82990368,0.00032071,2]
[422481379,1778987453000,-401.95422919,0.00032088,7]
[422481352,1778987453000,-454.76509088,0.00031524,7]
[422481350,1778987453000,-1222.4825337,0.00031507,30]
[422481351,1778987453000,-531.04058081,0.00031516,7]
[422481356,1778987453000,-5883.9986393,0.00031538,2]
[422481364,1778987453000,-536.0,0.00031943,7]
[422481355,1778987453000,-524.96135102,0.00031524,7]
[422481365,1778987453000,-350.0,0.00031957,2]
[422481357,1778987453000,-350.0,0.00031549,2]
[422481360,1778987453000,-947.16,0.000317,7]
[422481358,1778987453000,-9004.33,0.000316,14]
[422481359,1778987453000,-652.0,0.00031694,5]
[422481363,1778987453000,-1075.05,0.000319,7]
[422481349,1778987453000,-1000.0,0.000315,7]
[422481361,1778987453000,-2146.82990368,0.00031879,2]
[422481371,1778987453000,-305.63074081,0.00032088,7]
[422481376,1778987453000,-525.49874284,0.00032088,7]
[422481370,1778987453000,-497.5791555,0.00032086,7]
[422481373,1778987453000,-193.3451439,0.00032088,7]
[422481362,1778987453000,-2146.82990368,0.00031898,2]
[422481374,1778987453000,-353.42669605,0.00032088,7]
[422481375,1778987453000,-263.97509479,0.00032088,2]
[422481366,1778987453000,-1000.0,0.00032,5]
[422481377,1778987453000,-521.50491134,0.00032088,7]
[422481378,1778987453000,-410.04345554,0.00032088,7]
[422481368,1778987453000,-200.0,0.00032055,2]
[422481367,1778987453000,-442.38,0.00032,7]
[422481372,1778987453000,-330.42333687,0.00032088,7]
[422481449,1778987454000,-350.0,0.00032726,2]
[422481442,1778987454000,-2146.82990368,0.00032366,2]
[422481441,1778987454000,-2146.82990368,0.0003236,2]
[422481448,1778987454000,-9004.33,0.000327,14]
[422481435,1778987454000,-350.0,0.00032208,2]
[422481439,1778987454000,-167.385,0.00032243,12]
[422481451,1778987454000,-152.0,0.00032733,4]
[422481450,1778987454000,-885.06763468,0.00032726,7]
[422481440,1778987454000,-2146.82990368,0.00032305,2]
[422481443,1778987454000,-482.62266919,0.00032366,2]
[422481447,1778987454000,-1075.05,0.000327,7]
[422481454,1778987454000,-758.40518748,0.00032734,7]
[422481444,1778987454000,-724.0,0.00032366,2]
[422481446,1778987454000,-150.0,0.00032562,2]
[422481452,1778987454000,-757.94181814,0.00032734,7]
[422481455,1778987454000,-874.93558503,0.00032734,7]
[422481456,1778987454000,-442.38,0.000328,7]
[422481463,1778987454000,-448.43651,0.00032877,7]
[422481453,1778987454000,-751.31184824,0.00032734,2]
[422481458,1778987454000,-448.43651,0.00032877,7]
[422481460,1778987454000,-448.43651,0.00032877,7]
[422481462,1778987454000,-448.43651,0.00032877,7]
[422481457,1778987454000,-561.41,0.00032877,2]
[422481436,1778987454000,-713.7,0.0003221,5]
[422481445,1778987454000,-536.0,0.00032477,7]
[422481434,1778987454000,-167.385,0.000322,12]
[422481420,1778987454000,-606.72414998,0.00032129,7]
[422481433,1778987454000,-157.0,0.00032175,30]
[422481459,1778987454000,-448.43651,0.00032877,7]
[422481415,1778987454000,-153.33814862,0.00032099,7]
[422481408,1778987454000,-469.36530111,0.00032099,7]
[422481412,1778987454000,-416.606296,0.00032099,7]
[422481413,1778987454000,-335.49624851,0.00032099,7]
[422481409,1778987454000,-371.59053031,0.00032099,7]
[422481410,1778987454000,-205.08028382,0.00032099,7]
[422481414,1778987454000,-253.86404357,0.00032099,7]
[422481411,1778987454000,-222.805672,0.00032099,7]
[422481417,1778987454000,-299.43206112,0.00032128,7]
[422481418,1778987454000,-606.35345451,0.00032129,7]
[422481416,1778987454000,-708.05410774,0.00032121,7]
[422481437,1778987454000,-4818.0,0.0003224,2]
[422481419,1778987454000,-601.04947859,0.00032129,2]
[422481426,1778987454000,-154.0,0.0003217,30]
[422481423,1778987454000,-155.0,0.0003217,30]
[422481421,1778987454000,-699.94846803,0.00032129,7]
[422481422,1778987454000,-1594.1,0.00032147,2]
[422481424,1778987454000,-152.0,0.0003217,30]
[422481427,1778987454000,-152.0,0.0003217,30]
[422481430,1778987454000,-151.0,0.00032174,30]
[422481431,1778987454000,-155.0,0.00032174,30]
[422481429,1778987454000,-152.0,0.00032174,30]
[422481428,1778987454000,-158.0,0.0003217,30]
[422481432,1778987454000,-153.0,0.00032174,30]
[422481438,1778987454000,-7226.0,0.0003224,2]
[422481425,1778987454000,-154.0,0.0003217,30]
[422481464,1778987454000,-448.43651,0.00032877,7]
[422481465,1778987454000,-448.43651,0.00032877,7]
[422481466,1778987454000,-448.43651,0.00032877,7]
[422481506,1778987454000,-9004.33,0.000337,14]
[422481494,1778987454000,-151.0,0.00033174,30]
[422481497,1778987454000,-157.0,0.00033175,30]
[422481499,1778987454000,-167.385,0.00033287,17]
[422481496,1778987454000,-153.0,0.00033174,30]
[422481498,1778987454000,-167.385,0.000332,16]
[422481500,1778987454000,-536.0,0.00033545,9]
[422481503,1778987454000,-901.57421789,0.00033642,2]
[422481504,1778987454000,-910.08622497,0.00033642,7]
[422481501,1778987454000,-156.15408631,0.00033555,60]
[422481510,1778987454000,-1270.0,0.00033997,2]
[422481515,1778987454000,-206.783807,0.00034,9]
[422481516,1778987454000,-536.0,0.00034079,9]
[422481509,1778987454000,-350.0,0.00033973,5]
[422481514,1778987454000,-1108.86,0.00034,30]
[422481507,1778987454000,-415.07,0.00033765,120]
[422481513,1778987454000,-417.0,0.00033997,2]
[422481517,1778987454000,-155.0,0.0003417,30]
[422481508,1778987454000,-313.54230076,0.000339,2]
[422481511,1778987454000,-1223.0,0.00033997,2]
[422481512,1778987454000,-6055.0,0.00033997,2]
[422481521,1778987454000,-152.0,0.0003417,30]
[422481519,1778987454000,-154.0,0.0003417,30]
[422481520,1778987454000,-154.0,0.0003417,30]
[422481461,1778987454000,-448.43651,0.00032877,7]
[422481505,1778987454000,-1049.92270204,0.00033642,7]
[422481502,1778987454000,-512.398822,0.00033642,120]
[422481518,1778987454000,-152.0,0.0003417,30]
[422481490,1778987454000,-154.0,0.0003317,30]
[422481468,1778987454000,-448.43651,0.00032877,7]
[422481495,1778987454000,-155.0,0.00033174,30]
[422481471,1778987454000,-1222.4825337,0.00032877,30]
[422481470,1778987454000,-1934.69,0.00032877,30]
[422481467,1778987454000,-448.43651,0.00032877,7]
[422481469,1778987454000,-448.43651,0.00032877,7]
[422481473,1778987454000,-150.0,0.00032994,2]
[422481474,1778987454000,-150.0,0.00032994,2]
[422481475,1778987454000,-150.0,0.00032994,2]
[422481476,1778987454000,-150.0,0.00032994,2]
[422481477,1778987454000,-150.0,0.00032994,2]
[422481479,1778987454000,-150.0,0.00032994,2]
[422481478,1778987454000,-150.0,0.00032994,2]
[422481472,1778987454000,-150.0,0.00032994,2]
[422481480,1778987454000,-1354.0,0.00032994,2]
[422481491,1778987454000,-152.0,0.0003317,30]
[422481489,1778987454000,-154.0,0.0003317,30]
[422481492,1778987454000,-158.0,0.0003317,30]
[422481493,1778987454000,-152.0,0.00033174,30]
[422481486,1778987454000,-218.0383339,0.00033167,60]
[422481488,1778987454000,-152.0,0.0003317,30]
[422481487,1778987454000,-155.0,0.0003317,30]
[422481484,1778987454000,-536.0,0.00033011,8]
[422481482,1778987454000,-3543.0,0.00032994,2]
[422481483,1778987454000,-432.525457,0.00033,14]
[422481481,1778987454000,-625.0,0.00032994,2]
[422481485,1778987454000,-350.0,0.00033014,5]
[422481565,1778987455000,-1108.86,0.000349,30]
[422481564,1778987455000,-1500.0,0.00034795,2]
[422481566,1778987455000,-350.0,0.00034931,5]
[422481561,1778987455000,-536.0,0.00034613,10]
[422481563,1778987455000,-9004.33,0.000347,14]
[422481562,1778987455000,-2097.96168442,0.00034645,4]
[422481560,1778987455000,-281.44,0.000346,120]
[422481557,1778987455000,-400.0,0.00034481,2]
[422481559,1778987455000,-5000.0,0.000345,14]
[422481556,1778987455000,-400.0,0.00034481,2]
[422481551,1778987455000,-500.0,0.00034326,60]
[422481553,1778987455000,-500.0,0.00034326,60]
[422481558,1778987455000,-717.09996679,0.00034481,2]
[422481578,1778987455000,-195.443125,0.00035,7]
[422481579,1778987455000,-195.443125,0.00035,7]
[422481569,1778987455000,-1239.09468855,0.00034995,7]
[422481570,1778987455000,-1500.0,0.00035,5]
[422481567,1778987455000,-1159.5495101,0.00034971,7]
[422481572,1778987455000,-1950.88756514,0.00035,2]
[422481576,1778987455000,-245.7,0.00035,2]
[422481575,1778987455000,-555.78017369,0.00035,4]
[422481574,1778987455000,-151.0,0.00035,7]
[422481573,1778987455000,-1000.0,0.00035,90]
[422481577,1778987455000,-195.443125,0.00035,7]
[422481571,1778987455000,-172081.98636019,0.00035,4]
[422481580,1778987455000,-195.443127,0.00035,7]
[422481582,1778987455000,-1061.76726247,0.00035004,7]
[422481552,1778987455000,-500.0,0.00034326,60]
[422481568,1778987455000,-180.62151535,0.00034972,13]
[422481549,1778987455000,-500.0,0.00034326,60]
[422481529,1778987455000,-150.0,0.0003419,2]
[422481554,1778987455000,-537.5987461,0.00034326,60]
[422481583,1778987455000,-1075.05,0.000351,30]
[422481528,1778987455000,-713.7,0.00034182,7]
[422481523,1778987455000,-152.0,0.00034174,30]
[422481530,1778987455000,-453.39,0.000342,30]
[422481522,1778987455000,-158.0,0.0003417,30]
[422481525,1778987455000,-155.0,0.00034174,30]
[422481524,1778987455000,-151.0,0.00034174,30]
[422481527,1778987455000,-157.0,0.00034175,30]
[422481526,1778987455000,-153.0,0.00034174,30]
[422481532,1778987455000,-152.0,0.00034235,5]
[422481531,1778987455000,-167.385,0.000342,21]
[422481533,1778987455000,-1222.4825337,0.00034247,30]
[422481542,1778987455000,-500.0,0.00034326,60]
[422481550,1778987455000,-500.0,0.00034326,60]
[422481534,1778987455000,-196.81200675,0.0003432,3]
[422481538,1778987455000,-342.60847004,0.0003432,3]
[422481536,1778987455000,-331.2080045,0.0003432,3]
[422481540,1778987455000,-500.0,0.00034326,60]
[422481537,1778987455000,-331.2080045,0.0003432,3]
[422481541,1778987455000,-500.0,0.00034326,60]
[422481539,1778987455000,-370.43388016,0.0003432,3]
[422481543,1778987455000,-500.0,0.00034326,60]
[422481544,1778987455000,-500.0,0.00034326,60]
[422481546,1778987455000,-500.0,0.00034326,60]
[422481555,1778987455000,-167.385,0.0003433,22]
[422481547,1778987455000,-500.0,0.00034326,60]
[422481545,1778987455000,-500.0,0.00034326,60]
[422481548,1778987455000,-500.0,0.00034326,60]
[422481535,1778987455000,-287.24802701,0.0003432,3]
[422481590,1778987455000,-155.0,0.0003517,30]
[422481641,1778987455000,-371.903418,0.00035994,7]
[422481584,1778987455000,-227.999123,0.000351,7]
[422481629,1778987455000,-161.71,0.00035862,120]
[422481623,1778987455000,-1406.87099074,0.0003563,2]
[422481619,1778987455000,-561.41,0.00035616,2]
[422481627,1778987455000,-500.0,0.00035742,120]
[422481630,1778987455000,-350.0,0.0003589,5]
[422481622,1778987455000,-216.03066,0.00035624,30]
[422481621,1778987455000,-156.870283,0.0003562,30]
[422481618,1778987455000,-165.28814421,0.00035616,2]
[422481624,1778987455000,-536.0,0.00035681,11]
[422481626,1778987455000,-249.06655,0.00035742,120]
[422481625,1778987455000,-152.0,0.00035736,6]
[422481620,1778987455000,-150.0,0.0003562,30]
[422481631,1778987455000,-150.0,0.00035899,2]
[422481606,1778987455000,-167.385,0.00035374,27]
[422481634,1778987455000,-261.245373,0.00035994,7]
[422481639,1778987455000,-371.903411,0.00035994,7]
[422481637,1778987455000,-261.245365,0.00035994,7]
[422481633,1778987455000,-1075.05,0.000359,30]
[422481632,1778987455000,-293.4,0.000359,120]
[422481638,1778987455000,-371.903411,0.00035994,7]
[422481643,1778987455000,-150.0,0.00035994,2]
[422481642,1778987455000,-150.0,0.00035994,2]
[422481635,1778987455000,-261.245373,0.00035994,7]
[422481646,1778987455000,-1354.0,0.00035994,2]
[422481644,1778987455000,-150.0,0.00035994,2]
[422481640,1778987455000,-371.903411,0.00035994,7]
[422481645,1778987455000,-150.0,0.00035994,2]
[422481581,1778987455000,-1051.83658753,0.00035004,2]
[422481636,1778987455000,-261.245373,0.00035994,7]
[422481615,1778987455000,-151.0,0.00035616,7]
[422481628,1778987455000,-9004.33,0.000358,14]
[422481617,1778987455000,-152.01833,0.00035616,7]
[422481586,1778987455000,-227.999123,0.000351,7]
[422481612,1778987455000,-768.68922562,0.00035616,60]
[422481589,1778987455000,-536.0,0.00035147,10]
[422481585,1778987455000,-227.999123,0.000351,7]
[422481588,1778987455000,-316.49017355,0.00035116,5]
[422481587,1778987455000,-227.999123,0.000351,7]
[422481591,1778987455000,-152.0,0.0003517,30]
[422481593,1778987455000,-154.0,0.0003517,30]
[422481594,1778987455000,-152.0,0.0003517,30]
[422481597,1778987455000,-151.0,0.00035174,30]
[422481601,1778987455000,-453.39,0.000352,30]
[422481596,1778987455000,-152.0,0.00035174,30]
[422481598,1778987455000,-155.0,0.00035174,30]
[422481592,1778987455000,-154.0,0.0003517,30]
[422481595,1778987455000,-158.0,0.0003517,30]
[422481602,1778987455000,-167.385,0.000352,26]
[422481614,1778987455000,-410.0,0.00035616,10]
[422481600,1778987455000,-157.0,0.00035175,30]
[422481608,1778987455000,-391.81872224,0.00035464,2]
[422481605,1778987455000,-707.14859959,0.0003526,2]
[422481613,1778987455000,-1000.0,0.00035616,10]
[422481616,1778987455000,-151.0,0.00035616,7]
[422481607,1778987455000,-2367.0,0.000354,7]
[422481609,1778987455000,-170837.59347622,0.0003561,2]
[422481611,1778987455000,-1222.4825337,0.00035616,30]
[422481610,1778987455000,-4510.3460553,0.0003561,2]
[422481603,1778987455000,-442.38,0.000352,30]
[422481599,1778987455000,-153.0,0.00035174,30]
[422481604,1778987455000,-1500.0,0.000352,7]
[422481683,1778987456000,-155.66051685,0.00036174,30]
[422481685,1778987456000,-155.0,0.00036174,30]
[422481682,1778987456000,-158.0,0.0003617,30]
[422481692,1778987456000,-261.83,0.00036299,30]
[422481687,1778987456000,-157.0,0.00036175,30]
[422481684,1778987456000,-163.56767645,0.00036174,30]
[422481681,1778987456000,-152.0,0.0003617,30]
[422481688,1778987456000,-288.0,0.00036192,30]
[422481674,1778987456000,-1582.847602,0.000361,2]
[422481679,1778987456000,-154.0,0.0003617,30]